Cogmind - Beta 9.6 @@@ ROGUE MODE // 2020.06.01 @ 20:39:02 Player: pGoos Result: Destroyed by S-27 Virus with Autogun Performance ------------- Evolutions (3) 1500 Regions Visited (5) 1000 Robots Destroyed (7) 35 Value Destroyed (139) 139 Prototype IDs (1) 20 Alien Tech Used (0) 0 Bonus (0) 0 TOTAL SCORE: 2694 Bonus ------- None Cogmind --------- Core Integrity 0/700 Matter 170/300 Energy 98/100 System Corruption 0% Temperature Cool (0) Movement Core (50) Location -7/Factory Parts ------- > --- POWER (2) -------- (None) > --- PROPULSION (5) --- Armored Treads > --- UTILITY (4) ------ Terrain Scan Processor > --- WEAPON (2) ------- (None) > --- INVENTORY (4) ---- Light Deuterium Engine Xenon Bombardment Thruster Xenon Bombardment Thruster Xenon Bombardment Thruster Peak State ------------ > --- POWER ------------ Light Ion Engine Light Ion Engine > --- PROPULSION ------- Xenon Bombardment Thruster Xenon Bombardment Thruster Xenon Bombardment Thruster Xenon Bombardment Thruster Xenon Bombardment Thruster > --- UTILITY ---------- Small Storage Unit Improved Sensor Array Improved Terrain Scanner Terrain Scan Processor > --- WEAPON ----------- Gatling Laser > --- INVENTORY -------- Xenon Bombardment Thruster Xenon Bombardment Thruster Xenon Bombardment Thruster Improved Sensor Array [Rating: 34] Favorites ----------- Power Light Ion Engine Engine Light Ion Engine Propulsion Xenon Bombardment Thruster Treads Armored Treads Leg Aluminum Leg Hover Unit Backup Propulsion I Flight Unit Xenon Bombardment Thruster Utility Terrain Scan Processor Device Improved Sensor Array Storage Small Storage Unit Processor Terrain Scan Processor Weapon Backup Laser I Energy Gun Backup Laser I Launcher Proton Missile Launcher Special Weapon Mining Laser Build | -11 -10 -9 -9 -8 -7 ------- Run | Scr Mat Mat Min Mat Fac Slots Evolved 6 | . . 2 . 2 2 Power 1 | . . . . . 1 Propulsion 3 | . . 1 . 1 1 Utility 2 | . . 1 . 1 . Weapon . | . . . . . . Parts Attached 36 | 3 9 2 5 13 4 Power 6 | 1 2 1 1 . 1 Engine 6 | 1 2 1 1 . 1 Core . | . . . . . . Reactor . | . . . . . . Propulsion 12 | 2 2 1 . 5 2 Treads 1 | . . . . . 1 Leg 4 | 2 1 1 . . . Wheel . | . . . . . . Hover . | . . . . . . Flight 7 | . 1 . . 5 1 Utility 13 | . 2 . 4 7 . Device 8 | . 1 . 3 4 . Storage 4 | . 1 . . 3 . Processor 1 | . . . 1 . . Hackware . | . . . . . . Protection . | . . . . . . Artifact . | . . . . . . Weapon 5 | . 3 . . 1 1 Energy Gun 2 | . 1 . . 1 . Energy Cannon . | . . . . . . Ballistic Gun . | . . . . . . Ballistic Cannon . | . . . . . . Launcher 1 | . . . . . 1 Special Weapon 2 | . 2 . . . . Impact Weapon . | . . . . . . Slashing Weapon . | . . . . . . Piercing Weapon . | . . . . . . Special Melee Weapon . | . . . . . . Unidentified Prototypes 1 | . . . . 1 . Parts Lost 21 | . 4 3 1 1 12 Power 3 | . . 1 . . 2 Propulsion 8 | . 2 . 1 . 5 Utility 4 | . 1 . . . 3 Weapon 6 | . 1 2 . 1 2 Highest Loss Streak 12 | . 2 3 1 1 12 Average Slot Usage (%) 62 | . 80 45 31 83 42 Engine 8 | . 14 9 . 9 6 Leg 2 | . 2 11 5 . . Hover 5 | . 16 . . . . Flight 12 | . 7 7 . 34 14 Device 10 | . 5 . 15 15 7 Storage 5 | . 9 . . 7 3 Processor 5 | . . . 9 9 7 Energy Gun 8 | . 18 . . 7 1 Special Weapon 2 | . 5 18 . . . Naked Turns . | . . . . . . Heaviest Build 16 | 3 9 3 5 13 16 Greatest Support 28 | 10 12 10 3 28 28 Greatest Overweight (x) 2 | . 1 . 1 . 2 Average Overweight (x) . | . . . . . . Largest Inventory Capacity 10 | 4 6 4 4 10 6 Average Capacity 4 | 4 5 4 4 5 4 Most Carried 6 | 4 6 4 4 6 6 Average Carried 4 | 2 3 3 3 5 4 Final Capacity 6 | 4 4 4 4 6 4 Final Carried 6 | 4 3 4 3 6 4 Class Distribution -------------------- 65% | Mutant 34% | Scout Dominant Class ---------------- Mutant | -10/Materials Mutant | -9/Materials Mutant | -9/Mines Scout | -8/Materials Mutant | -7/Factory Resources | -11 -10 -9 -9 -8 -7 ----------- Run | Scr Mat Mat Min Mat Fac Matter Collected 326 | 218 87 . 21 . . Remotely . | . . . . . . Salvage Created 184 | . 157 . 27 . . Parts 12 | . 10 . 2 . . Haulers Intercepted . | . . . . . . Recyclers Shooed 1 | . . . 1 . . Parts Field Recycled . | . . . . . . Retrieved Matter . | . . . . . . Parts Self-Destructed . | . . . . . . Prevented . | . . . . . . Kills | -11 -10 -9 -9 -8 -7 ------- Run | Scr Mat Mat Min Mat Fac Combat Hostiles Destroyed 6 | . 6 . . . . Guns 5 | . 5 . . . . Cannons 1 | . 1 . . . . Classes Destroyed 3 | . 2 . 1 . . Tunneler 1 | . . . 1 . . Swarmer 3 | . 3 . . . . Grunt 3 | . 3 . . . . Best Kill Streak 3 | . 3 . 1 . . Combat Bots Only 3 | . 3 . . . . Max Kills in Single Turn 1 | . 1 . 1 . . Gunslinging . | . . . . . . Exploded . | . . . . . . Melee . | . . . . . . Uniques/NPCs Destroyed . | . . . . . . Combat | -11 -10 -9 -9 -8 -7 -------- Run | Scr Mat Mat Min Mat Fac Damage Taken 1950 | . 340 212 28 . 1370 Core 947 | . 128 89 16 . 714 Absorbed by Shields 72 | . . . . . 72 Core Remaining (%) 80 | 100 48 . 73 100 . Volleys Fired 24 | . 24 . . . . Largest 2 | . 2 . . . . Hottest 200 | . 200 . . . . Shots Fired 46 | . 46 . . . . Gun 44 | . 44 . . . . Cannon . | . . . . . . Launcher . | . . . . . . Special 2 | . 2 . . . . Kinetic . | . . . . . . Thermal 46 | . 46 . . . . Explosive . | . . . . . . Electromagnetic . | . . . . . . Robot Hit Streak 6 | . 6 . . . . Robot Miss Streak 2 | . 2 . . . . Penetration Max . | . . . . . . Secondary Targets 2 | . 2 . . . . Max Gunslinging Chain 1 | . 1 . . . . Shots Hit Robots 28 | . 28 . . . . Core Hits 11 | . 8 . 3 . . Critical Hits . | . . . . . . Critical Kills . | . . . . . . Critical Parts Destroyed . | . . . . . . Melee Attacks . | . . . . . . Impact . | . . . . . . Slashing . | . . . . . . Piercing . | . . . . . . Sneak Attacks . | . . . . . . Combat Hostiles . | . . . . . . Follow-up Attacks . | . . . . . . Damage Inflicted 345 | . 315 . 30 . . Guns 291 | . 291 . . . . Cannons . | . . . . . . Explosions . | . . . . . . Melee . | . . . . . . Ramming 30 | . . . 30 . . Kinetic . | . . . . . . Thermal 315 | . 315 . . . . Explosive . | . . . . . . Electromagnetic . | . . . . . . Impact . | . . . . . . Slashing . | . . . . . . Piercing . | . . . . . . Highest Corruption 7 | . 1 . 7 . . Average Corruption 4 | . 1 . 6 . . Corruption Purged . | . . . . . . Effects 8 | . 2 . 6 . . Message Errors 4 | . 1 . 3 . . Matter Fused 1 | . . . 1 . . Heat Flow Errors 1 | . . . 1 . . Data Loss (major) 1 | . . . 1 . . Targeting Errors 1 | . 1 . . . . Overload Shots . | . . . . . . Overflow Damage . | . . . . . . Projectiles . | . . . . . . Explosions . | . . . . . . Melee . | . . . . . . Knockbacks 1 | . . . 1 . . Impact 1 | . . . 1 . . Kinetic . | . . . . . . Secondary . | . . . . . . Self-Inflicted Damage 12 | . . . 12 . . Shots . | . . . . . . Rammed 8 | . . . 8 . . Targets Rammed 8 | . . . 8 . . Kicked . | . . . . . . Crushed . | . . . . . . Highest Temperature 165 | . 165 . 115 . . Average Temperature 61 | . 61 . 59 . . Received Heat Transfer 186 | . 111 42 . . 33 Siege Activations . | . . . . . . Robots Corrupted . | . . . . . . Combat Hostiles . | . . . . . . Parts Fried . | . . . . . . Impact Corruptions . | . . . . . . Robots Melted . | . . . . . . Combat Hostiles . | . . . . . . Parts Melted . | . . . . . . Heat Transferred 1123 | . 1123 . . . . Parts Sabotaged . | . . . . . . Parts Stolen . | . . . . . . Parts Stripped . | . . . . . . Power Chain Reactions . | . . . . . . Missiles Intercepted . | . . . . . . Alert | -11 -10 -9 -9 -8 -7 ------- Run | Scr Mat Mat Min Mat Fac Peak Influence 141 | . 141 93 24 37 20 Average Influence 31 | . 55 73 21 15 7 Maximum Alert Level . | . . . . . . Low Security (%) 100 | 100 100 100 100 100 100 Level 1 . | . . . . . . Level 2 . | . . . . . . Level 3 . | . . . . . . Level 4 . | . . . . . . Level 5 . | . . . . . . High Security . | . . . . . . Max Security . | . . . . . . Squads Dispatched 5 | . 1 2 . 1 1 Investigation 1 | . . 1 . . . Extermination . | . . . . . . Reinforcement 4 | . 1 1 . 1 1 Assault . | . . . . . . Garrison . | . . . . . . Intercept . | . . . . . . Construction Impeded . | . . . . . . Haulers Reinforced . | . . . . . . Stealth | -11 -10 -9 -9 -8 -7 --------- Run | Scr Mat Mat Min Mat Fac Distress Signals 4 | . . 1 . 1 2 Communications Jammed . | . . . . . . Distress Signals . | . . . . . . Times Spotted 63 | . 16 11 . 9 27 Peak Tracking Total 11 | . 5 11 . 4 11 Tactical Retreats 9 | . . 1 . 3 5 Traps | -11 -10 -9 -9 -8 -7 ------- Run | Scr Mat Mat Min Mat Fac Traps Triggered 2 | . 1 . . . 1 Indirectly . | . . . . . . Trap Hack Attempts . | . . . . . . Triggered . | . . . . . . Disarmed . | . . . . . . Reprogrammed . | . . . . . . Reused . | . . . . . . Traps Extracted . | . . . . . . Installed . | . . . . . . Triggered . | . . . . . . Machines | -11 -10 -9 -9 -8 -7 ---------- Run | Scr Mat Mat Min Mat Fac Machines Disabled . | . . . . . . Max in Single Turn . | . . . . . . Machines Sabotaged . | . . . . . . Garrisons Compromised . | . . . . . . Overloaded Fab Kills . | . . . . . . Fab Network Shutdowns . | . . . . . . Hacking | -11 -10 -9 -9 -8 -7 --------- Run | Scr Mat Mat Min Mat Fac Machines Accessed 8 | . 3 3 . 1 1 Terminals 4 | . 1 2 . . 1 Fabricators . | . . . . . . Repair Stations 2 | . 1 1 . . . Recycling Units 2 | . 1 . . 1 . Scanalyzers . | . . . . . . Garrison Access . | . . . . . . Total Hacks 20 | . 7 8 . 2 3 Successful 7 | . 1 3 . 2 1 Failed 13 | . 6 5 . . 2 Catastrophic . | . . . . . . Database Lockouts . | . . . . . . Manual . | . . . . . . Terminals 10 | . 2 5 . . 3 Fabricators . | . . . . . . Repair Stations 6 | . 3 3 . . . Recycling Units 4 | . 2 . . 2 . Scanalyzers . | . . . . . . Garrison Access . | . . . . . . Terminal Hacks 4 | . . 3 . . 1 Emergency Access Points 2 | . . 2 . . . Unreport Threat 1 | . . . . . 1 Locate Traps 1 | . . 1 . . . Fabricator Hacks . | . . . . . . Repair Station Hacks 1 | . 1 . . . . Refit 1 | . 1 . . . . Recycling Unit Hacks 2 | . . . . 2 . Report Inventory 1 | . . . . 1 . Retrieve Components 1 | . . . . 1 . Scanalyzer . | . . . . . . Garrison Access Hacks . | . . . . . . Unauthorized Hacks . | . . . . . . Terminals . | . . . . . . Fabricators . | . . . . . . Repair Stations . | . . . . . . Recycling Units . | . . . . . . Scanalyzers . | . . . . . . Garrison Access . | . . . . . . Data Cores Recovered . | . . . . . . Used . | . . . . . . Hacking Detections 7 | . 3 3 . . 1 Full Trace Events 1 | . . 1 . . . Feedback Events . | . . . . . . Feedback Blocked . | . . . . . . Robot Schematics Acquired . | . . . . . . Robots Built . | . . . . . . Matter . | . . . . . . Time . | . . . . . . Total Robot Build Rating . | . . . . . . Part Schematics Acquired . | . . . . . . Parts Built . | . . . . . . Matter . | . . . . . . Time . | . . . . . . Total Part Build Rating . | . . . . . . Parts Repaired . | . . . . . . Time . | . . . . . . Parts Recycled . | . . . . . . Recycled Matter . | . . . . . . Retrieved Matter . | . . . . . . Retrieved Components 2 | . . . . 2 . Parts Scanalyzed . | . . . . . . Part Schematics Acquired . | . . . . . . Parts Damaged . | . . . . . . Bothacking | -11 -10 -9 -9 -8 -7 ------------ Run | Scr Mat Mat Min Mat Fac Used RIF Installer . | . . . . . . Robots Hacked . | . . . . . . Non-combat . | . . . . . . Combat . | . . . . . . Robot Hacks Applied . | . . . . . . Relay Couplers Released . | . . . . . . Robots Rewired . | . . . . . . Allies Hacked . | . . . . . . Hacks Repelled . | . . . . . . Allies | -11 -10 -9 -9 -8 -7 -------- Run | Scr Mat Mat Min Mat Fac Total Allies . | . . . . . . Largest Group . | . . . . . . Highest-Rated Group . | . . . . . . Highest-Rated Ally . | . . . . . . Total Orders . | . . . . . . Ally Attacks . | . . . . . . Total Damage . | . . . . . . Kills . | . . . . . . Allies Corrupted . | . . . . . . Allies Melted . | . . . . . . Intel | -11 -10 -9 -9 -8 -7 ------- Run | Scr Mat Mat Min Mat Fac Robot Analysis Total . | . . . . . . Derelict Logs Recovered 2 | . . . 2 . . Drone Launches . | . . . . . . Drone Recoveries . | . . . . . . Exploration | -11 -10 -9 -9 -8 -7 ------------- Run | Scr Mat Mat Min Mat Fac Turns Passed 1160 | 36 385 67 279 253 140 Spaces Moved 1420 | 50 308 111 440 280 231 Core 864 | 47 165 101 440 . 111 Treads . | . . . . . . Legs 13 | 3 . 10 . . . Wheels . | . . . . . . Hover 143 | . 143 . . . . Flight 400 | . . . . 280 120 Fastest Speed 31 | 50 50 50 50 31 31 Average Speed 53 | 54 76 56 52 37 44 Slowest Speed 160 | 120 160 120 100 40 150 Overloaded Moves . | . . . . . . Propulsion Burnouts . | . . . . . . Robots Hopped 2 | . . . . 2 . Cave-ins Triggered . | . . . . . . Exploration Rate (%) 34 | 3 61 18 97 20 8 Regions Visited 5 Branch Regions 1 Pre-discovered Areas . | . . . . . . Known Exits Taken . | . . . . . . Unknown Exits Taken 5 | 1 1 1 1 1 . Scrap Searched 1 | . . . 1 . . Spaces Dug . | . . . . . . Terrain Destroyed . | . . . . . . Melee . | . . . . . . Projectile . | . . . . . . AOE . | . . . . . . Actions | -11 -10 -9 -9 -8 -7 --------- Run | Scr Mat Mat Min Mat Fac Total 1763 | 56 411 115 488 426 267 Wait 228 | . 53 . 33 117 25 Move 1411 | 49 307 110 439 275 231 Hop 2 | . . . . 2 . Pick Up 22 | 4 6 . 1 9 2 Fast Attach 22 | 3 3 2 4 8 2 Attach 11 | . 4 . 1 4 2 Detach 5 | . 2 1 . 2 . Swap 4 | . 2 . . 2 . Drop 21 | . 10 2 2 7 . Fire 24 | . 24 . . . . Melee . | . . . . . . Ram 8 | . . . 8 . . Kick . | . . . . . . Crush . | . . . . . . Escape Stasis 5 | . . . . . 5 Rewire . | . . . . . . Trap . | . . . . . . Miscellaneous . | . . . . . . Route ------- -11/Scrapyard -10/Materials (discovered 2 exits: *Mat / [*Min]) -9/Materials -9/Mines (discovered 2 exits: *Mat x2) -8/Materials -7/Factory History --------- Turn | Location | Event 4 | -11/Scrapyard | Discovered new exit (range 15) 37 | -11/Scrapyard | Entered Materials 308 | -10/Materials | Build established: Mutant 336 | -10/Materials | Discovered new exit (range 7) 416 | -10/Materials | Discovered new exit (range 14) 419 | -10/Materials | Core integrity fell below 50% 422 | -10/Materials | Entered another Materials area 422 | -9/Materials | Evolved 2 slots: Propulsion x1, Utility x1 478 | -9/Materials | Discovered new exit (range 16) 489 | -9/Materials | Entered Mines 493 | -9/Mines | Met a Derelict bent on vengeance 513 | -9/Mines | Lost 3 parts (1p2w) 525 | -9/Mines | Discovered new exit (range 12) 535 | -9/Mines | Discovered new exit (range 16) 589 | -9/Mines | Learned Materials interactive machine intel 681 | -9/Mines | Learned Materials stockpile data 768 | -9/Mines | Entered Materials 768 | -8/Materials | Evolved 2 slots: Propulsion x1, Utility x1 770 | -8/Materials | Loaded intel: 19 interactive machine locations 983 | -8/Materials | Discovered new exit (range 16) 1021 | -8/Materials | Entered Factory 1021 | -7/Factory | Evolved 2 slots: Power x1, Propulsion x1 1121 | -7/Factory | Core integrity fell below 50% 1129 | -7/Factory | Core integrity fell below 20% 1151 | -7/Factory | Lost 12 parts (2p5n3u2w) 1161 | -7/Factory | Destroyed by S-27 Virus with Autogun Last Messages --------------- 01055_ Stasis field depleted. 01070_ Xenon Bombardment Thruster destroyed. 01071_ Lgt. Ion Engine destroyed. 01074_ Acquired Lgt. Deuterium Engine. 01075_ S-27 Virus destroyed. 01075_ W-25 Informer sends out distress signal. 01076_ Connecting with Terminal... 01080_ T-07 Excavator is excavating. 01084_ Xenon Bombardment Thruster destroyed. 01089_ Sml. Storage Unit destroyed. 01092_ Lgt. Ion Engine destroyed. 01092_ Imp. Terrain Scanner destroyed. 01095_ Xenon Bombardment Thruster destroyed. 01099_ Imp. Sensor Array destroyed. 01109_ Acquired Proton Missile Launcher. 01110_ ALERT: Hostiles spotted, dispatching reinforcements to Terminal F015. 01120_ Proton Missile Launcher destroyed. 01143_ T-07 Excavator destroyed. 01143_ K-01 Serf collects debris. 01151_ Acquired Arm. Treads. Map ----- +----------------------------------------------------+ | ?????????????? ??# #???????? | | ??????????????? #?# """ """ #???????? | | ???????????????"" "" ### """ """ #???????? | | ???????????????"" """ # """ """ #???????? | | ???????????????"" R" # "" "" #???????? | | ?????????????"""" """ # "" "" #???????? | | ???????????? + #???????? | | ???????????? # #???????? | | ????????????????####### # #???????? | | ??????????????????????# #! #???????? | | ??????????????????????# # #???????? | | ????????????????????#?# # #???????? | | ??????????????????????# ####+#########???????? | | ??????????????????????# #??# # ??????????????? | | ??????????????????????# #??# #???????????????? | | ??????????????????????# #### #???????????????? | | ??????????????????????# ! ] #???????? ??? | | ??????????????????????### s #???????????? | | ????????????????????????#" s""" ### #???????? | | ????????????????????????#T """ #??????? ? | | ????????????????????????#" """ ##?????? ? | | ????????????????????????# #?#???? ?? | | ????????????????????????# #????? ??? | | ???????????#????????????# ######+## #????? ? ? | | ????????????????????????# #???? ???# #????? ???? | | ????????????????????????#@#????????? #??###+##### | | ????????????????????????# #?????"?## #### | | ???????????????########?# #???????+ | | ??????????????? ### #######???#?##?# | | ??????????????""" """ # #???######+##### # | | ????????????? """ """ # #???# ###/# | | ?????????# """ """ # #???# """ # [%* | | ?????????# ! # #???# """ # = | | ?????????# """ """ + #???# """ # | | ??????????????""" """ # #???# # | | ???????????????"" """ # #???# """ # | | ??????????????? # #???# """ ] # | | ??????????????? # #???# """ # | | ?????????????? ### ^ ###???# # | | ?????????????? #?# ^ #?????#####+#### | | ??????????????#########?# ######### ####"# | | ????????????????????????# ### | | ????????????????????????# ###### ## T | | ????????????????????????# #????# ## ### | | ?????????????????? ?????# #????# ## #?## # | | ????????????????????????# #????# ########??# # | | ????????????????????????# #????# #?????????# # | | ????????????????????????# #????# #?????????# # | | ????????????????????????# #????#+#?????????# # | | ????????????????????????# #??????????????#?# ? | +----------------------------------------------------+ Best States ------------- Heat Dissipation 34 Energy Generation 15 Energy Capacity 150 Matter Stores 300 Matter Capacity 300 Sight Range 16 Robot Scan Range 13 Terrain Scan Range 16 Terrain Scan Density 85 Evasion (%) 63 Item Schematics ----------------- None Robot Schematics ------------------ None Fabricated ------------ Nothing Alien Tech Used ----------------- None Achievements -------------- None Challenges ------------ None Game ------ Seed FireWaveShotgun Manual? 0 Play Time 00:34:24 Cumulative 29.5 hours Start 2020.06.01 @ 19:31:11 End 2020.06.01 @ 20:39:02 Sessions 1 Manual Loads 0 Difficulty Rogue Special Mode None Game No. 41 Rogue 41 Adventurer 0 Explorer 0 Win Type - Total 0 Types 0/0/0/0/0/0/0 Lore% 20 Gallery% 26 Achievement% 19 Wizard Run 0 Options --------- ASCII 0 Keyboard 0 Movement Numpad Keybinds 0 Fullscreen 2 Font 24/Terminus Map View 113x50 Tactical HUD 1 Map Filters NONE Filters NONE Steam 1 RUN: 20eae357-ba5d-407f-9bbd-f99c8b23bc1a